bitfinex/quotes_BTCUSD_20240623
["timestamp","ask_amount","ask_price","bid_price","bid_amount"]
[1719106990394,0.39892971,64558.0,64557.0,0.17358689]
[1719106990527,0.39977971,64558.0,64557.0,0.17358689]
[1719106990727,0.39970717,64558.0,64557.0,0.17358689]
[1719106992320,0.5568152,64558.0,64557.0,0.17358689]
[1719106992948,0.8666132,64558.0,64557.0,0.17358689]
[1719106993753,0.86677529,64558.0,64557.0,0.17358689]
[1719106994056,1.11519729,64558.0,64557.0,0.17358689]
[1719106995733,0.95809064,64558.0,64557.0,0.17358689]
[1719106996491,0.93484364,64558.0,64557.0,0.17358689]
[1719106999959,0.93461182,64558.0,64557.0,0.17358689]
[1719107002928,0.9230034,64558.0,64557.0,0.17358689]
[1719107003120,0.93377719,64558.0,64557.0,0.17358689]
[1719107005879,0.875966,64558.0,64557.0,0.17358689]
[1719107006081,0.93380384,64558.0,64557.0,0.17358689]
[1719107006292,0.88675344,64558.0,64557.0,0.17358689]
[1719107006619,0.93380358,64558.0,64557.0,0.17358689]
[1719107009132,0.93337682,64558.0,64557.0,0.17358689]
[1719107012028,0.88651244,64558.0,64557.0,0.17358689]
[1719107012235,0.93333326,64558.0,64557.0,0.17358689]
[1719107015097,0.875966,64558.0,64557.0,0.17358689]
[1719107015291,0.93351311,64558.0,64557.0,0.17358689]
[1719107015515,0.875966,64558.0,64557.0,0.17358689]
[1719107015673,0.9332956,64558.0,64557.0,0.17358689]
[1719107017501,1.0903858,64558.0,64557.0,0.097635]
[1719107018378,1.09104999,64558.0,64557.0,0.097635]
[1719107020663,0.93395429,64558.0,64557.0,0.097635]
[1719107020815,0.57543729,64558.0,64557.0,0.097635]
[1719107021567,0.57533952,64558.0,64557.0,0.097635]
[1719107022307,1.05153152,64558.0,64557.0,0.097635]
[1719107024443,1.04079888,64558.0,64557.0,0.097635]
[1719107024619,1.05169742,64558.0,64557.0,0.097635]
[1719107024843,1.05166559,64558.0,64557.0,0.097635]
[1719107026259,1.20873983,64558.0,64557.0,0.097635]
[1719107027590,1.20873419,64558.0,64557.0,0.097635]
[1719107030540,1.16161723,64558.0,64557.0,0.097635]
[1719107030937,1.20878732,64558.0,64557.0,0.097635]
[1719107031343,1.13922032,64558.0,64557.0,0.097635]
[1719107033739,1.13954177,64558.0,64557.0,0.097635]
[1719107034091,1.08113339,64558.0,64557.0,0.097635]
[1719107034308,1.13954177,64558.0,64557.0,0.097635]
[1719107035668,1.13966687,64558.0,64557.0,0.097635]
[1719107036863,0.924074,64558.0,64557.0,0.097635]
[1719107037061,1.13963208,64558.0,64557.0,0.097635]
[1719107039704,0.73300708,64558.0,64557.0,0.097635]
[1719107040244,0.73282086,64558.0,64557.0,0.097635]
[1719107040547,1.30931686,64558.0,64557.0,0.097635]
[1719107042377,1.61920194,64558.0,64557.0,0.097635]
[1719107042784,1.6189692,64558.0,64557.0,0.097635]
[1719107043536,1.6389692,64558.0,64557.0,0.097635]
[1719107043858,1.6389692,64558.0,64557.0,0.000935]
[1719107043859,2.09683167,64558.0,64557.0,0.000935]
[1719107044037,2.29685753,64558.0,64557.0,0.000935]
[1719107044828,2.39685753,64558.0,64557.0,0.000935]
[1719107045239,2.39715637,64558.0,64557.0,0.000935]
[1719107046048,2.24460223,64558.0,64557.0,0.000935]
[1719107048309,2.24462801,64558.0,64557.0,0.000935]
[1719107049515,2.25162801,64558.0,64557.0,0.001935]
[1719107049728,2.34135878,64558.0,64557.0,0.001935]
[1719107049887,2.33435878,64558.0,64557.0,0.000935]
[1719107050507,2.42476417,64558.0,64557.0,0.000935]
[1719107051328,2.28250751,64558.0,64557.0,0.001935]
[1719107051500,2.43888377,64558.0,64557.0,0.002935]
[1719107052070,2.43888217,64558.0,64557.0,0.002935]
[1719107053107,2.43869679,64558.0,64557.0,0.002935]
[1719107054454,2.30097949,64558.0,64557.0,0.002935]
[1719107054678,2.43862779,64558.0,64557.0,0.002935]
[1719107055858,2.3757283,64558.0,64557.0,0.002935]
[1719107057510,2.37577463,64558.0,64557.0,0.002935]
[1719107058827,2.28576717,64558.0,64557.0,0.002935]
[1719107060340,2.23386717,64558.0,64557.0,0.002935]
[1719107060698,2.28625408,64558.0,64557.0,0.002935]
[1719107061126,2.28649669,64558.0,64557.0,0.002935]
[1719107063734,2.28621416,64558.0,64557.0,0.002935]
[1719107064912,2.23431416,64558.0,64557.0,0.002935]
[1719107065116,2.28621416,64558.0,64557.0,0.002935]
[1719107066736,2.28654608,64558.0,64557.0,0.002935]
[1719107066904,2.37684938,64558.0,64557.0,0.002935]
[1719107067649,2.4049001,64558.0,64557.0,0.002935]
[1719107068098,2.3145968,64558.0,64557.0,0.002935]
[1719107068297,2.40478641,64558.0,64557.0,0.002935]
[1719107069704,2.25465874,64558.0,64557.0,0.002935]
[1719107069925,2.40478867,64558.0,64557.0,0.002935]
[1719107070130,2.40475732,64558.0,64557.0,0.002935]
[1719107072870,2.40461632,64558.0,64557.0,0.002935]
[1719107074698,2.4045503,64558.0,64557.0,0.002935]
[1719107075693,2.37649958,64558.0,64557.0,0.002935]
[1719107075906,2.37653238,64558.0,64557.0,0.002935]
[1719107077578,2.37653238,64558.0,64557.0,0.082735]
[1719107078969,2.37654237,64558.0,64557.0,0.082735]
[1719107079328,2.37664613,64558.0,64557.0,0.082735]
[1719107081488,2.35664613,64558.0,64557.0,0.158635]
[1719107082062,2.37642346,64558.0,64557.0,0.158635]
[1719107083345,2.37985847,64558.0,64557.0,0.158635]
[1719107084940,2.37939621,64558.0,64557.0,0.158635]
[1719107085724,1.80290021,64558.0,64557.0,0.158635]
[1719107085911,3.55929121,64558.0,64557.0,0.158635]
[1719107086116,3.39929121,64558.0,64557.0,0.158635]
[1719107086742,3.40014121,64558.0,64557.0,0.158635]
[1719107087852,3.25072201,64558.0,64557.0,0.158635]
[1719107088054,3.39892235,64558.0,64557.0,0.158635]
[1719107088260,3.25072201,64558.0,64557.0,0.158635]
[1719107088465,3.39893987,64558.0,64557.0,0.158635]
[1719107091106,3.39896835,64558.0,64557.0,0.158635]
[1719107093471,3.41090071,64558.0,64557.0,0.158635]
[1719107094193,3.41090071,64558.0,64557.0,0.15859428]
[1719107094879,3.10110271,64558.0,64557.0,0.15859428]
[1719107095670,2.95285637,64558.0,64557.0,0.15859428]
[1719107095864,3.04252834,64558.0,64557.0,0.15859428]
[1719107096064,3.10098431,64558.0,64557.0,0.15859428]
[1719107097305,3.100984,64558.0,64557.0,0.15859428]
[1719107097659,3.10067111,64558.0,64557.0,0.15859428]
[1719107100368,2.95285637,64558.0,64557.0,0.15859428]
[1719107100537,3.10070521,64558.0,64557.0,0.15859428]
[1719107102807,3.10096171,64558.0,64557.0,0.15859428]
[1719107105809,3.10094242,64558.0,64557.0,0.15859428]
[1719107106167,3.10094241,64558.0,64557.0,0.15859428]
[1719107108085,1.50455141,64558.0,64557.0,0.15859428]
[1719107108291,4.03556541,64558.0,64557.0,0.15859428]
[1719107108413,3.92982441,64558.0,64557.0,0.15859428]
[1719107108614,3.83363837,64558.0,64557.0,0.15859428]
[1719107108812,3.98252096,64558.0,64557.0,0.15859428]
[1719107110747,3.89628596,64558.0,64557.0,0.15859428]
[1719107111789,3.89681324,64558.0,64557.0,0.15859428]
[1719107111992,4.46921401,64558.0,64557.0,0.00289428]
[1719107112219,4.31665987,64558.0,64557.0,0.00289428]
[1719107112428,4.74558836,64558.0,64557.0,0.00289428]
[1719107112642,4.54558836,64558.0,64557.0,0.00289428]
[1719107113971,4.31665987,64558.0,64557.0,0.00289428]
[1719107114717,4.16725,64558.0,64557.0,0.00289428]
[1719107114925,4.54616509,64558.0,64557.0,0.00289428]
[1719107115116,4.69871522,64558.0,64557.0,0.00289428]
[1719107115325,4.46987089,64558.0,64557.0,0.00289428]
[1719107117729,4.31980414,64558.0,64557.0,0.00289428]
[1719107117930,4.46975656,64558.0,64557.0,0.00289428]
[1719107118530,4.66975656,64558.0,64557.0,0.00289428]
[1719107120660,4.46975656,64558.0,64557.0,0.00289428]
[1719107120892,4.46985578,64558.0,64557.0,0.00289428]
[1719107121577,4.41795578,64558.0,64557.0,0.00289428]
[1719107121781,4.46985578,64558.0,64557.0,0.00289428]
[1719107121986,4.66985578,64558.0,64557.0,0.00289428]
[1719107122183,4.46985578,64558.0,64557.0,0.00289428]
[1719107123592,4.66985578,64558.0,64557.0,0.00289428]
[1719107123974,4.4699165,64558.0,64557.0,0.00289428]
[1719107124244,4.46991603,64558.0,64557.0,0.00289428]
[1719107124644,2.07897803,64558.0,64557.0,0.00289428]
[1719107124846,6.28589303,64558.0,64557.0,0.00289428]
[1719107125467,4.75853803,64558.0,64557.0,0.00289428]
[1719107125643,4.68278703,64558.0,64557.0,0.00289428]
[1719107126609,4.61286303,64558.0,64557.0,0.00289428]
[1719107126845,4.46275114,64558.0,64557.0,0.00289428]
[1719107127056,4.61287591,64558.0,64557.0,0.00289428]
[1719107129044,4.46032177,64558.0,64557.0,0.00289428]
[1719107129878,4.510197,64558.0,64557.0,0.00289428]
[1719107130006,4.66020215,64558.0,64557.0,0.00289428]
[1719107131736,4.46020215,64558.0,64557.0,0.00289428]
[1719107131934,4.66020215,64558.0,64557.0,0.00289428]
[1719107132975,4.64849192,64558.0,64557.0,0.00289428]
[1719107133152,4.66035905,64558.0,64557.0,0.00289428]
[1719107133472,4.66035838,64558.0,64557.0,0.00289428]
[1719107134408,4.58981691,64558.0,64557.0,0.00289428]
[1719107135955,4.43965553,64558.0,64557.0,0.00289428]
[1719107136155,4.44873373,64558.0,64557.0,0.00289428]
[1719107137921,1.92676473,64558.0,64557.0,0.00289428]
[1719107138969,1.776312,64558.0,64557.0,0.00289428]
[1719107139220,4.53520715,64558.0,64557.0,0.00289428]
[1719107139346,4.14578615,64558.0,64557.0,0.00289428]
[1719107142090,4.14583195,64558.0,64557.0,0.00289428]
[1719107142405,4.14767714,64558.0,64557.0,0.00289428]
[1719107142617,4.29838609,64558.0,64557.0,0.00289428]
[1719107142948,4.14583195,64558.0,64557.0,0.00289428]
[1719107144915,3.995123,64558.0,64557.0,0.00289428]
[1719107145115,4.14589432,64558.0,64557.0,0.00289428]
[1719107145536,3.81402032,64558.0,64557.0,0.15069428]
[1719107145743,3.86592032,64558.0,64557.0,0.15069428]
[1719107145946,3.88592032,64558.0,64557.0,0.15069428]
[1719107147518,3.83402032,64558.0,64557.0,0.15069428]
[1719107147734,3.86592032,64558.0,64557.0,0.15069428]
[1719107147941,3.77592263,64558.0,64557.0,0.15069428]
[1719107148088,3.86655949,64558.0,64557.0,0.15069428]
[1719107149082,3.81465949,64558.0,64557.0,0.15069428]
[1719107149275,3.58634449,64558.0,64557.0,0.15069428]
[1719107149480,3.44724104,64558.0,64557.0,0.15069428]
[1719107149666,3.58618646,64558.0,64557.0,0.15069428]
[1719107150286,3.11443983,64558.0,64557.0,0.15069428]
[1719107150486,2.09128283,64558.0,64557.0,0.15069428]
[1719107150911,1.88813037,64558.0,64557.0,0.15069428]
[1719107151112,2.09476118,64558.0,64557.0,0.15069428]
[1719107151459,1.94003037,64558.0,64557.0,0.15069428]
[1719107151655,2.09476105,64558.0,64557.0,0.15069428]
[1719107152735,2.00312991,64558.0,64557.0,0.15069428]
[1719107152915,1.95122991,64558.0,64557.0,0.15069428]
[1719107153124,2.00312991,64558.0,64557.0,0.15069428]
[1719107153549,2.02312991,64558.0,64557.0,0.15069428]
[1719107154028,2.02364168,64558.0,64557.0,0.15069428]
[1719107155904,1.96003037,64558.0,64557.0,0.15069428]
[1719107156115,2.02371721,64558.0,64557.0,0.15069428]
[1719107156899,1.97181721,64558.0,64557.0,0.15069428]
[1719107157099,2.02371721,64558.0,64557.0,0.15069428]
[1719107160247,2.11081628,64558.0,64557.0,0.08539428]
[1719107160515,2.11081628,64558.0,64557.0,0.00289428]
[1719107160516,2.33942125,64558.0,64557.0,0.00289428]
[1719107160719,2.55731866,64558.0,64557.0,0.00289428]
[1719107160934,2.64922384,64558.0,64557.0,0.00289428]
[1719107161878,2.64981858,64558.0,64557.0,0.00289428]
[1719107162364,2.49357675,64558.0,64557.0,0.00289428]
[1719107162647,2.84981874,64558.0,64557.0,0.00289428]
[1719107163827,2.84942816,64558.0,64557.0,0.00289428]
[1719107165178,2.64942816,64558.0,64557.0,0.00289428]
[1719107166715,2.84942816,64558.0,64557.0,0.00289428]
[1719107166895,2.64942816,64558.0,64557.0,0.00289428]
[1719107167050,2.84942816,64558.0,64557.0,0.00289428]
[1719107167649,2.64942816,64558.0,64557.0,0.00289428]
[1719107168517,2.55746285,64558.0,64557.0,0.00289428]
[1719107168657,2.6494273,64558.0,64557.0,0.00289428]
[1719107168858,2.49357675,64558.0,64557.0,0.00289428]
[1719107169059,2.64942165,64558.0,64557.0,0.00289428]
[1719107170886,2.84942165,64558.0,64557.0,0.00289428]
[1719107171256,2.64942165,64558.0,64557.0,0.00289428]
[1719107171658,2.64897215,64558.0,64557.0,0.00289428]
[1719107171842,2.64897215,64558.0,64557.0,0.08029428]
[1719107173079,2.84897215,64558.0,64557.0,0.08029428]
[1719107174621,2.69357675,64558.0,64557.0,0.08029428]
[1719107174795,2.64867978,64558.0,64557.0,0.08029428]
[1719107175130,2.84867978,64558.0,64557.0,0.08029428]
[1719107175332,2.64867978,64558.0,64557.0,0.08029428]
[1719107175533,2.84867978,64558.0,64557.0,0.08029428]
[1719107175779,2.64867978,64558.0,64557.0,0.08029428]
[1719107177596,2.04511478,64558.0,64557.0,0.08029428]
[1719107177829,4.70381619,64558.0,64557.0,0.08029428]
[1719107178090,4.54887375,64558.0,64557.0,0.08029428]
[1719107178258,4.70423737,64558.0,64557.0,0.08029428]
[1719107178463,4.55482762,64558.0,64557.0,0.14259428]
[1719107178666,4.35897262,64558.0,64557.0,0.14259428]
[1719107178866,4.32297262,64558.0,64557.0,0.14259428]
[1719107179630,3.97598562,64558.0,64557.0,0.14259428]
[1719107179827,3.94680762,64558.0,64557.0,0.14259428]
[1719107180669,3.83575629,64558.0,64557.0,0.14259428]
[1719107181097,3.77266829,64558.0,64557.0,0.14259428]
[1719107181643,3.71483129,64558.0,64557.0,0.14259428]
[1719107181845,3.09369929,64558.0,64557.0,0.14259428]
[1719107184944,3.00665066,64558.0,64557.0,0.14259428]
[1719107185081,3.09369929,64558.0,64557.0,0.14259428]
[1719107185297,3.00665066,64558.0,64557.0,0.14259428]
[1719107185484,3.09369929,64558.0,64557.0,0.14259428]
[1719107186778,2.937267,64558.0,64557.0,0.14259428]
[1719107186890,3.09352117,64558.0,64557.0,0.14259428]
[1719107187096,2.73364818,64558.0,64557.0,0.14259428]
[1719107187294,2.78379615,64558.0,64557.0,0.14259428]
[1719107187998,3.09359415,64558.0,64557.0,0.14259428]
[1719107189165,2.78379615,64558.0,64557.0,0.14259428]
[1719107189596,2.78379615,64558.0,64557.0,0.14179428]
[1719107189597,1.99904752,64558.0,64557.0,0.14179428]
[1719107189799,0.70132097,64558.0,64557.0,0.14179428]
[1719107190153,0.53026862,64558.0,64557.0,0.14179428]
[1719107190349,0.48216862,64558.0,64557.0,0.14179428]
[1719107190688,0.43026862,64558.0,64557.0,0.14179428]
[1719107190886,0.2777075,64558.0,64557.0,0.14179428]
[1719107191131,0.0707075,64558.0,64557.0,0.14079428]
[1719107191465,0.0727075,64558.0,64557.0,0.14079428]
[1719107192258,0.022739,64558.0,64557.0,0.14079428]
[1719107192388,0.016739,64558.0,64557.0,0.13979428]
[1719107192591,0.1,64566.0,64557.0,0.00089428]
[1719107192790,0.310565,64576.0,64561.0,0.154891]
[1719107192791,0.2,64562.0,64561.0,0.154891]
[1719107192997,0.01438195,64562.0,64561.0,0.154891]
[1719107193243,0.1304645,64562.0,64559.0,0.154895]
[1719107193442,0.1304645,64562.0,64561.0,0.1367]
[1719107193443,0.11608255,64562.0,64561.0,0.1367]
[1719107193642,0.12857255,64562.0,64561.0,0.1367]
[1719107194053,0.12857255,64562.0,64561.0,0.1407]
[1719107194254,0.10531896,64562.0,64561.0,0.1407]
[1719107194449,0.10531896,64562.0,64561.0,0.1367]
[1719107195204,0.01249,64562.0,64561.0,0.1367]
[1719107195353,0.01249,64562.0,64561.0,0.92411137]
[1719107195561,0.0217614,64568.0,64564.0,0.309768]
[1719107195754,0.11599598,64566.0,64565.0,0.291582]
[1719107195979,0.0217614,64568.0,64565.0,0.154882]
[1719107196217,0.12678145,64567.0,64566.0,0.1367]
[1719107197366,0.0108192,64567.0,64566.0,0.1367]
[1719107197781,0.0138192,64567.0,64566.0,0.1367]
[1719107198119,0.10653911,64567.0,64566.0,0.1367]
[1719107198983,0.09571713,64567.0,64566.0,0.1367]
[1719107199186,0.10657751,64567.0,64566.0,0.1367]
[1719107199387,0.01686038,64567.0,64566.0,0.1367]
[1719107199586,0.01386038,64567.0,64566.0,0.1367]
[1719107199787,0.01386038,64567.0,64566.0,0.1397]
[1719107199987,0.01086038,64567.0,64566.0,0.1397]
[1719107200426,0.01086038,64567.0,64566.0,0.1427]
[1719107201145,0.08032982,64567.0,64566.0,0.1427]
[1719107201756,0.01086038,64567.0,64566.0,0.1427]
[1719107201930,0.08032776,64567.0,64566.0,0.1427]
[1719107204968,0.00085,64568.0,64567.0,0.1481]
[1719107205487,0.08107664,64568.0,64567.0,0.1481]
[1719107206244,0.01164006,64568.0,64567.0,0.1501]
[1719107206458,0.08107664,64568.0,64567.0,0.1521]
[1719107207773,0.0810359,64568.0,64567.0,0.1521]
[1719107208194,0.01161504,64568.0,64567.0,0.1521]
[1719107209408,0.05789135,64568.0,64567.0,0.1521]
[1719107209892,0.01161504,64568.0,64567.0,0.1521]
[1719107213256,0.05788573,64568.0,64567.0,0.1521]
[1719107213459,0.01161504,64568.0,64567.0,0.1521]
[1719107214345,0.01157313,64568.0,64567.0,0.1521]
[1719107215664,0.05786337,64568.0,64567.0,0.1521]
[1719107216092,0.00085,64568.0,64567.0,0.1521]
[1719107216268,0.04712254,64568.0,64567.0,0.1521]
[1719107216812,0.01153018,64568.0,64567.0,0.1521]
[1719107216966,0.04712254,64568.0,64567.0,0.1521]
[1719107217172,0.00085,64568.0,64567.0,0.1521]
[1719107217541,0.01153018,64568.0,64567.0,0.1521]
[1719107217687,0.05780383,64568.0,64567.0,0.1521]
[1719107218071,0.00085,64568.0,64567.0,0.1521]
[1719107218274,0.01154772,64568.0,64567.0,0.1521]
[1719107220275,0.05847228,64568.0,64567.0,0.1521]
[1719107220916,0.05887925,64568.0,64567.0,0.1521]
[1719107222189,0.12830462,64568.0,64567.0,0.1521]
[1719107223389,0.00085,64568.0,64567.0,0.1521]
[1719107223638,0.08109029,64568.0,64567.0,0.1521]
[1719107224001,0.12811493,64568.0,64567.0,0.1521]
[1719107225170,0.05866895,64568.0,64567.0,0.1521]
[1719107226490,0.05895361,64568.0,64567.0,0.1521]
[1719107226688,0.15159038,64568.0,64567.0,0.1521]
[1719107228579,0.05895361,64568.0,64567.0,0.1521]
[1719107229383,0.05891442,64568.0,64567.0,0.1521]
[1719107230299,0.17476289,64568.0,64567.0,0.1521]
[1719107231251,0.05891442,64568.0,64567.0,0.1521]
[1719107232411,0.00085,64568.0,64567.0,0.1521]
[1719107232612,0.0118663,64568.0,64567.0,0.1521]
[1719107232806,0.00085,64568.0,64567.0,0.1521]
[1719107233047,0.05909827,64568.0,64567.0,0.1521]
[1719107235570,0.05919157,64568.0,64567.0,0.1521]
[1719107236565,0.354872,64570.0,64568.0,0.0783]
[1719107236929,0.406772,64570.0,64568.0,0.0783]
[1719107238154,0.407772,64570.0,64568.0,0.0783]
[1719107239160,0.154873,64569.0,64568.0,0.0783]
[1719107240413,0.154873,64569.0,64568.0,0.0793]
[1719107240792,0.154873,64569.0,64568.0,0.0803]
[1719107244321,0.155723,64569.0,64568.0,0.0803]
[1719107244520,0.19700552,64569.0,64568.0,0.0803]
[1719107244927,0.19699713,64569.0,64568.0,0.0803]
[1719107245919,0.50674313,64569.0,64568.0,0.0803]
[1719107246575,0.51638451,64569.0,64568.0,0.0803]
[1719107247962,0.465469,64569.0,64568.0,0.0803]
[1719107248130,0.51634137,64569.0,64568.0,0.0803]
[1719107250907,0.465469,64569.0,64568.0,0.0803]
[1719107251108,0.51646167,64569.0,64568.0,0.0803]
[1719107251306,0.51645859,64569.0,64568.0,0.0803]
[1719107252492,0.20671589,64569.0,64568.0,0.0803]
[1719107254102,0.155723,64569.0,64568.0,0.0803]
[1719107254302,0.05169325,64569.0,64568.0,0.0803]
[1719107254505,0.05169325,64569.0,64568.0,0.1468]
[1719107259231,0.20656625,64569.0,64568.0,0.1468]
[1719107260111,0.20650672,64569.0,64568.0,0.1468]
[1719107260424,0.20659373,64569.0,64568.0,0.1468]
[1719107261710,0.20655999,64569.0,64568.0,0.1468]
[1719107263083,0.16536507,64569.0,64568.0,0.1468]
[1719107263283,0.20656368,64569.0,64568.0,0.1468]
[1719107265422,0.51630968,64569.0,64568.0,0.1468]
[1719107266175,0.47511058,64569.0,64568.0,0.1468]
[1719107266394,0.5162813,64569.0,64568.0,0.1468]
[1719107269166,0.51631355,64569.0,64568.0,0.1468]
[1719107269538,0.51635059,64569.0,64568.0,0.1468]
[1719107270136,0.51635059,64569.0,64568.0,0.0803]
[1719107272113,0.465469,64569.0,64568.0,0.0803]
[1719107272336,0.51630793,64569.0,64568.0,0.0803]
[1719107275108,0.465469,64569.0,64568.0,0.0803]
[1719107275333,0.51628125,64569.0,64568.0,0.0803]
[1719107277799,0.51648375,64569.0,64568.0,0.0803]
[1719107278331,0.51648434,64569.0,64568.0,0.0803]
[1719107278759,0.51648438,64569.0,64568.0,0.0803]
[1719107280865,0.51648777,64569.0,64568.0,0.0803]
[1719107282599,0.51648777,64569.0,64568.0,0.1421]
[1719107283791,0.51652972,64569.0,64568.0,0.1421]
[1719107286642,0.465469,64569.0,64568.0,0.1421]
[1719107286822,0.51642032,64569.0,64568.0,0.1421]
[1719107287027,0.56832033,64569.0,64568.0,0.0803]
[1719107287566,1.03062745,64569.0,64568.0,0.002]
[1719107287787,1.50237533,64569.0,64568.0,0.002]
[1719107288175,1.34547345,64569.0,64568.0,0.002]
[1719107288371,1.34505147,64569.0,64568.0,0.002]
[1719107288741,1.3445377,64569.0,64568.0,0.002]
[1719107288938,1.3645377,64569.0,64568.0,0.002]
[1719107289165,1.5445377,64569.0,64568.0,0.002]
[1719107289351,1.5645377,64569.0,64568.0,0.002]
[1719107289611,1.54412175,64569.0,64568.0,0.002]
[1719107290370,2.11888175,64569.0,64568.0,0.002]
[1719107290541,2.11888175,64569.0,64568.0,0.001]
[1719107290931,2.12288175,64569.0,64568.0,0.002]
[1719107292145,2.12288175,64569.0,64568.0,0.001]
[1719107292342,2.12288175,64569.0,64564.0,0.0768]
[1719107292343,0.464647,64565.0,64564.0,0.0768]
[1719107292543,0.56651605,64565.0,64564.0,0.0768]
[1719107293353,0.87628105,64565.0,64564.0,0.0768]
[1719107293600,0.464661,64563.0,64562.0,0.077735]
[1719107293789,0.51463005,64563.0,64562.0,0.077735]
[1719107294342,0.82440405,64563.0,64562.0,0.077735]
[1719107295556,0.774435,64563.0,64562.0,0.082735]
[1719107295744,0.82437281,64563.0,64562.0,0.082735]
[1719107296054,0.774435,64563.0,64562.0,0.082735]
[1719107296163,0.82437312,64563.0,64562.0,0.082735]
[1719107296565,0.82437312,64563.0,64562.0,0.083735]
[1719107296996,0.82437312,64563.0,64562.0,0.082735]
[1719107297223,0.82437448,64563.0,64562.0,0.082735]
[1719107297658,0.56650048,64563.0,64562.0,0.082735]
[1719107297877,0.56650048,64563.0,64562.0,0.144535]
[1719107298653,0.56680325,64563.0,64562.0,0.144535]
[1719107299067,0.7061203,64563.0,64562.0,0.087735]
[1719107301722,0.70600452,64563.0,64562.0,0.087735]
[1719107304183,1.01577852,64563.0,64562.0,0.087735]
[1719107304540,1.67388223,64563.0,64562.0,0.010935]
[1719107304661,1.87369732,64563.0,64562.0,0.010935]
[1719107305059,1.86405686,64563.0,64562.0,0.010935]
[1719107305303,1.87369877,64563.0,64562.0,0.010935]
[1719107305548,1.87369877,64563.0,64562.0,0.005935]
[1719107306310,2.04017477,64563.0,64562.0,0.000935]
[1719107306928,2.03917477,64563.0,64562.0,0.000935]
[1719107307139,1.96469477,64563.0,64562.0,0.000935]
[1719107307363,1.96169477,64563.0,64562.0,0.000935]
[1719107307758,1.64237681,64563.0,64562.0,0.000935]
[1719107307903,1.68883264,64563.0,64562.0,0.000935]
[1719107308105,1.70966699,64563.0,64562.0,0.000935]
[1719107308305,1.71266699,64563.0,64562.0,0.000935]
[1719107310651,1.66221116,64563.0,64562.0,0.000935]
[1719107310855,1.7124475,64563.0,64562.0,0.000935]
[1719107311260,1.7175475,64563.0,64562.0,0.000935]
[1719107312039,1.6656475,64563.0,64562.0,0.000935]
[1719107312331,1.7175475,64563.0,64562.0,0.000935]
[1719107313743,1.71725276,64563.0,64562.0,0.000935]
[1719107314082,1.71725278,64563.0,64562.0,0.000935]
[1719107314331,1.71425278,64563.0,64562.0,0.000935]
[1719107314529,1.73425278,64563.0,64562.0,0.000935]
[1719107315501,1.73725278,64563.0,64562.0,0.000935]
[1719107315843,1.74025278,64563.0,64562.0,0.000935]
[1719107316813,1.74023014,64563.0,64562.0,0.000935]
[1719107319823,1.69031116,64563.0,64562.0,0.000935]
[1719107320015,1.74040812,64563.0,64562.0,0.000935]
[1719107320622,1.73530812,64563.0,64562.0,0.000935]
[1719107322936,1.73522787,64563.0,64562.0,0.000935]
[1719107323299,1.68521116,64563.0,64562.0,0.000935]
[1719107323479,1.73522788,64563.0,64562.0,0.000935]
[1719107324794,1.68521116,64563.0,64562.0,0.000935]
[1719107324996,1.73523249,64563.0,64562.0,0.000935]
[1719107326052,1.68521116,64563.0,64562.0,0.000935]
[1719107326252,1.73527928,64563.0,64562.0,0.000935]
[1719107326498,1.66337928,64563.0,64562.0,0.000935]
[1719107326635,1.71527928,64563.0,64562.0,0.000935]
[1719107327229,1.70927928,64563.0,64562.0,0.000935]
[1719107327431,1.71227928,64563.0,64562.0,0.000935]
[1719107327692,1.71527928,64563.0,64562.0,0.000935]
[1719107327853,1.71227928,64563.0,64562.0,0.000935]
[1719107329169,1.71227928,64563.0,64562.0,0.142735]
[1719107329170,1.50481106,64563.0,64562.0,0.142735]
[1719107329457,0.57397406,64563.0,64562.0,0.142735]
[1719107329626,0.71523347,64563.0,64562.0,0.142735]
[1719107330586,0.71323347,64563.0,64562.0,0.142735]
[1719107330790,0.71523347,64563.0,64562.0,0.142735]
[1719107331348,0.71323347,64563.0,64562.0,0.142735]
[1719107331553,0.57397406,64563.0,64562.0,0.142735]
[1719107332195,0.57394804,64563.0,64562.0,0.142735]
[1719107332492,0.57194781,64563.0,64562.0,0.142735]
[1719107332705,0.57194781,64563.0,64562.0,0.152735]
[1719107333318,0.57194781,64563.0,64562.0,0.147735]
[1719107333499,0.52191304,64563.0,64562.0,0.147735]
[1719107333680,0.57195862,64563.0,64562.0,0.150735]
[1719107334316,0.57195862,64563.0,64562.0,0.147735]
[1719107335676,0.57195862,64563.0,64562.0,0.152735]
[1719107336084,0.57195862,64563.0,64562.0,0.147735]
[1719107336306,0.57195862,64563.0,64562.0,0.150735]
[1719107336674,0.70175462,64563.0,64562.0,0.147735]
[1719107336983,0.70175462,64563.0,64562.0,0.152735]
[1719107337298,0.57195862,64563.0,64562.0,0.152735]
[1719107337736,0.52191304,64563.0,64562.0,0.152735]
[1719107337939,0.57203766,64563.0,64562.0,0.152735]
[1719107338358,0.57381304,64563.0,64562.0,0.152735]
[1719107338496,0.62393783,64563.0,64562.0,0.152735]
[1719107339137,0.75427683,64563.0,64562.0,0.147735]
[1719107339338,0.75427683,64563.0,64562.0,0.142735]
[1719107339536,0.75427683,64563.0,64562.0,0.143735]
[1719107339714,0.75427683,64563.0,64562.0,0.144735]
[1719107339923,0.75427683,64563.0,64562.0,0.142735]
[1719107340119,0.62393783,64563.0,64562.0,0.142735]
[1719107340323,0.62393783,64563.0,64562.0,0.146735]
[1719107340736,0.75427683,64563.0,64562.0,0.144735]
[1719107340935,0.75427683,64563.0,64562.0,0.142735]
[1719107340936,0.62406548,64563.0,64562.0,0.142735]
[1719107341545,0.62406533,64563.0,64562.0,0.142735]
[1719107342031,0.75440433,64563.0,64562.0,0.142735]
[1719107342332,0.57216533,64563.0,64562.0,0.142735]
[1719107342694,0.57216533,64563.0,64562.0,0.147735]
[1719107342886,0.62406533,64563.0,64562.0,0.150735]
[1719107343268,0.62406533,64563.0,64562.0,0.147735]
[1719107343789,0.57381304,64563.0,64562.0,0.147735]
[1719107344023,0.62488859,64563.0,64562.0,0.152735]
[1719107344222,0.31511459,64563.0,64562.0,0.152735]
[1719107344650,0.31511459,64563.0,64562.0,0.147735]
[1719107345063,0.1238099,64563.0,64562.0,0.147735]
[1719107345643,0.1238099,64563.0,64562.0,0.142735]
[1719107345847,0.30787861,64567.0,64563.0,0.1476]
[1719107346009,0.154883,64565.0,64564.0,0.0823]
[1719107346213,0.406783,64565.0,64564.0,0.0823]
[1719107346858,0.2,64565.0,64564.0,0.1476]